bitfinex-derivatives/quotes_ETHF0:USTF0_20250704
["timestamp","ask_amount","ask_price","bid_price","bid_amount"]
[1751606118880,2.65078167,2577.3,2576.9,3.79230596]
[1751606119180,0.77582,2577.0,2576.9,3.79230596]
[1751606120167,0.77582,2577.0,2576.9,4.56815596]
[1751606120879,0.77582,2577.0,2576.9,3.79230596]
[1751606121078,0.77582,2577.0,2576.9,4.56815596]
[1751606122582,0.77582,2577.0,2576.9,3.79230596]
[1751606122876,0.77582,2577.0,2576.9,0.6937]
[1751606123775,0.77582,2577.0,2576.9,1.46955]
[1751606124181,0.77582,2577.0,2576.9,0.6937]
[1751606125078,0.77582,2577.0,2576.9,4.56815596]
[1751606125285,0.77582,2577.0,2576.9,1.46955]
[1751606126076,0.77582,2577.0,2576.9,4.56815596]
[1751606126272,0.77582,2577.0,2576.9,1.46955]
[1751606126571,0.77582,2577.0,2576.9,4.56815596]
[1751606126882,0.77582,2577.0,2576.9,1.46955]
[1751606127381,0.77582,2577.0,2576.9,0.6937]
[1751606128085,0.77582,2577.0,2576.9,1.46955]
[1751606128482,0.77582,2577.0,2576.9,0.6937]
[1751606129578,1.41452,2577.0,2576.9,1.46955]
[1751606130485,1.41452,2577.0,2576.9,0.6937]
[1751606139988,1.41452,2577.0,2576.9,1.46955]
[1751606140697,1.41452,2577.0,2576.9,0.6937]
[1751606141291,1.41452,2577.0,2576.9,1.46955]
[1751606141695,1.41452,2577.0,2576.9,0.6937]
[1751606142496,1.41452,2577.0,2576.9,1.46955]
[1751606142992,1.41452,2577.0,2576.9,0.6937]
[1751606143193,1.41452,2577.0,2576.9,1.46955]
[1751606143694,1.41452,2577.0,2576.9,0.6937]
[1751606147501,1.41452,2577.0,2576.9,1.46955]
[1751606147796,1.41452,2577.0,2576.9,0.6937]
[1751606149798,1.41452,2577.0,2576.9,1.46955]
[1751606149998,1.46952,2577.1,2577.0,0.77582]
[1751606150194,0.6887,2577.2,2577.1,0.77579]
[1751606150399,0.77579,2577.1,2577.0,1.2951]
[1751606150794,1.46448,2577.2,2577.1,0.77579]
[1751606151399,0.77579,2577.1,2577.0,5.2787]
[1751606154006,1.46448,2577.2,2577.1,0.77579]
[1751606154202,0.77578,2577.2,2577.1,0.77579]
[1751606154404,0.77578,2577.2,2577.1,2.06839]
[1751606157002,11.71166,2577.6,2577.4,0.7757]
[1751606157201,1.75534925,2577.5,2577.4,0.7757]
[1751606157397,0.77567,2577.5,2577.4,0.7757]
[1751606158203,11.71166,2577.6,2577.4,0.7757]
[1751606158407,1.47593,2577.7,2577.4,2.64978273]
[1751606158609,1.47593,2577.7,2577.6,0.77564]
[1751606158798,2.45525427,2577.7,2577.6,0.77564]
[1751606159402,1.67962427,2577.7,2577.6,0.77564]
[1751606159797,0.97932427,2577.7,2577.6,0.77564]
[1751606160409,56.6526,2577.8,2577.7,0.77561]
[1751606160710,0.77562,2577.7,2577.6,0.77562]
[1751606161510,55.877,2577.8,2577.7,0.77561]
[1751606161711,4.4908,2578.2,2577.5,1.3415]
[1751606161712,3.2078,2578.2,2578.1,0.77549]
[1751606161908,0.97878502,2578.2,2578.1,0.77549]
[1751606162110,35.9243,2578.4,2578.1,0.77549]
[1751606162308,0.77549,2578.2,2577.9,5.85758273]
[1751606162510,0.77549,2578.2,2578.0,1.2964]
[1751606162813,0.77549,2578.2,2578.1,0.77549]
[1751606164709,0.77549,2578.2,2578.0,2.0719]
[1751606165412,0.77545,2578.3,2578.1,0.77547]
[1751606167100,0.77545,2578.3,2578.2,0.77546]
[1751606167308,0.77545,2578.3,2578.1,0.77548]
[1751606167615,0.77545,2578.3,2578.2,0.77546]
[1751606167904,0.77543,2578.3,2578.2,0.77546]
[1751606168309,0.77543,2578.3,2578.1,0.77547]
[1751606168510,0.77543,2578.3,2578.2,0.77546]
[1751606168710,38.57408273,2578.4,2578.2,0.77546]
[1751606169106,0.77543,2578.3,2578.2,0.77546]
[1751606169302,39.34950273,2578.4,2578.2,0.77546]
[1751606170408,39.33650273,2578.4,2578.2,0.77546]
[1751606170711,39.33650273,2578.4,2578.2,2.17556]
[1751606170910,1.41872,2578.4,2578.3,0.77543]
[1751606171208,0.6433,2578.4,2578.3,0.77543]
[1751606171410,1.4187,2578.4,2578.3,0.77543]
[1751606172315,0.77543,2578.3,2578.2,2.17554]
[1751606172715,0.77546,2578.2,2578.1,1.42077]
[1751606172914,0.77545,2578.3,2578.2,0.77546]
[1751606173415,4.06850273,2578.4,2578.2,0.77546]
[1751606173713,4.06850273,2578.4,2578.3,0.77543]
[1751606173915,0.77543,2578.3,2578.2,0.77544]
[1751606175015,3.29308273,2578.4,2578.2,0.77544]
[1751606175215,3.29308273,2578.4,2578.3,0.77543]
[1751606175417,0.6433,2578.4,2578.3,0.77543]
[1751606175623,1.41872,2578.4,2578.3,0.77543]
[1751606177317,0.77546,2578.2,2578.1,1.42077]
[1751606177517,0.77545,2578.3,2578.2,0.77545]
[1751606178017,4.06851273,2578.4,2578.3,0.77543]
[1751606178320,1.41873,2578.4,2578.3,0.77543]
[1751606179019,0.6433,2578.4,2578.3,0.77543]
[1751606179916,1.4187,2578.4,2578.3,0.77543]
[1751606183911,0.6433,2578.4,2578.3,0.77543]
[1751606184108,1.4187,2578.4,2578.3,0.77543]
[1751606184419,0.6433,2578.4,2578.3,0.77543]
[1751606185419,3.98301,2579.1,2578.4,1.93851]
[1751606185618,0.77523,2579.0,2578.9,0.77524]
[1751606186119,0.77524,2579.0,2578.9,0.77525]
[1751606186619,3.983,2579.1,2579.0,0.77522]
[1751606186923,3.2078,2579.1,2579.0,0.77522]
[1751606187117,38.4608,2579.1,2579.0,0.77522]
[1751606187317,39.23599,2579.1,2579.0,0.77522]
[1751606188820,36.02819,2579.1,2579.0,0.77522]
[1751606189520,0.77524,2579.0,2578.9,0.77523]
[1751606191322,36.02821,2579.1,2579.0,0.77522]
[1751606191918,0.77523,2579.0,2578.7,3.95918273]
[1751606192124,0.77523,2579.0,2578.9,0.77525]
[1751606192826,36.02821,2579.1,2579.0,0.77522]
[1751606193120,1.2839,2579.2,2579.1,0.77519]
[1751606193322,36.5279,2579.2,2579.1,0.77519]
[1751606193524,1.2839,2579.2,2579.1,0.77519]
[1751606193726,0.64,2579.2,2579.1,3.42497273]
[1751606194215,0.64,2579.2,2579.1,4.81617273]
[1751606195723,1.41516,2579.2,2579.1,0.77519]
[1751606196028,0.77519,2579.1,2579.0,0.6418]
[1751606197028,1.41518,2579.2,2579.0,1.417]
[1751606197424,0.77519,2579.1,2579.0,1.417]
[1751606198529,1.41518,2579.2,2579.0,1.417]
[1751606198923,1.41518,2579.2,2579.1,0.77519]
[1751606199535,1.41518,2579.2,2579.0,1.417]
[1751606199730,1.41518,2579.2,2579.1,0.77519]
[1751606200931,0.77519,2579.1,2579.0,1.417]
[1751606201133,0.77519,2579.1,2579.0,0.7752]
[1751606202235,2.06438,2579.2,2579.1,0.77519]
[1751606203527,0.7752,2579.1,2579.0,0.7752]
[1751606205433,2.06439,2579.2,2579.1,0.77519]
[1751606206434,0.77522,2579.1,2579.0,0.77521]
[1751606206629,0.77522,2579.1,2579.0,2.16621]
[1751606208538,0.77522,2579.0,2578.9,3.8889]
[1751606208732,0.77522,2579.0,2578.9,3.2078]
[1751606210935,1.93813,2579.0,2578.5,1.47757]
[1751606211132,0.77534,2578.6,2578.5,1.47757]
[1751606212135,0.77534,2578.6,2578.5,0.7022]
[1751606213238,1.42913,2578.7,2578.5,0.7022]
[1751606213740,0.77534,2578.6,2578.5,1.47756]
[1751606214436,0.77534,2578.6,2578.5,0.7022]
[1751606215939,0.7754,2578.4,2578.3,6.30640596]
[1751606216141,0.7754,2578.4,2578.3,3.2078]
[1751606218642,0.77543,2578.3,2578.2,4.68878273]
[1751606218847,0.77543,2578.3,2578.2,3.29458273]
[1751606219141,0.77543,2578.3,2578.2,0.6448]
[1751606219439,0.77549,2578.2,2578.0,6.63310273]
[1751606219640,2.64978273,2578.6,2578.1,0.77548]
[1751606219839,0.6474,2578.4,2578.1,0.77548]
[1751606220041,0.77543,2578.3,2578.1,0.77548]
[1751606220243,0.77543,2578.3,2578.2,0.77546]
[1751606220438,0.77547,2578.2,2578.0,7.92338273]
[1751606220638,0.77547,2578.2,2578.0,8.69890273]
[1751606221339,0.77549,2578.1,2578.0,8.69890273]
[1751606221843,0.77549,2578.1,2578.0,7.92338273]
[1751606222741,0.77549,2578.1,2578.0,4.71558273]
[1751606222942,0.77549,2578.1,2578.0,7.92338273]
[1751606223344,0.77549,2578.1,2578.0,8.69890273]
[1751606223741,0.77549,2578.1,2578.0,7.92338273]
[1751606224742,0.77549,2578.1,2578.0,8.69890273]
[1751606224941,0.77548,2578.2,2578.1,0.77548]
[1751606225143,0.77548,2578.2,2578.1,2.14058]
[1751606226243,0.77546,2578.3,2578.2,0.77546]
[1751606226443,0.77542,2578.4,2578.3,0.77543]
[1751606226741,0.77542,2578.4,2578.3,2.80673]
[1751606226945,0.77542,2578.4,2578.3,2.0313]
[1751606228447,0.77542,2578.4,2578.3,0.6461]
[1751606230441,0.77542,2578.4,2578.3,2.77423]
[1751606230647,0.77539,2578.5,2578.4,0.7754]
[1751606230848,0.77539,2578.5,2578.4,4.77788273]
[1751606231548,3.2078,2578.6,2578.4,4.00248273]
[1751606231747,3.98314,2578.6,2578.5,1.3527]
[1751606233346,3.98314,2578.6,2578.5,2.12807]
[1751606233646,3.98314,2578.6,2578.5,1.3527]
[1751606233849,0.77533,2578.7,2578.5,2.12805]
[1751606234148,0.77531,2578.7,2578.6,3.99668273]
[1751606234344,0.77531,2578.7,2578.6,4.65228273]
[1751606235342,0.77537,2578.5,2578.4,2.64978273]
[1751606235539,0.7754,2578.4,2578.3,0.6556]
[1751606235741,0.6786,2578.4,2578.0,11.00248869]
[1751606236048,0.77548,2578.2,2578.0,7.90388273]
[1751606236247,0.77548,2578.2,2578.1,0.77549]
[1751606236447,0.77545,2578.3,2578.1,0.77549]
[1751606236646,0.77542,2578.4,2578.3,0.77543]
[1751606237147,0.77542,2578.4,2578.3,2.70383]
[1751606238853,0.77542,2578.4,2578.3,1.9284]
[1751606239047,0.77542,2578.4,2578.3,0.6576]
[1751606239249,1.41922,2578.4,2578.3,0.6576]
[1751606240348,0.77549,2578.1,2578.0,4.46220596]
[1751606240549,0.77549,2578.1,2577.9,3.09860596]
[1751606240848,0.77549,2578.1,2577.7,6.30640596]
[1751606240849,0.77558,2577.8,2577.7,6.30640596]
[1751606241047,3.42536273,2577.8,2577.7,3.2078]
[1751606241250,0.77558,2577.8,2577.7,3.2078]
[1751606247666,46.92058,2577.8,2577.7,3.2078]
[1751606247866,46.92058,2577.8,2577.7,3.8786]
[1751606250666,46.92058,2577.8,2577.7,3.2078]
[1751606252061,0.77561,2577.7,2577.6,2.64978273]
[1751606252460,0.77564,2577.6,2577.5,3.8619]
[1751606252661,1.45544,2577.6,2577.5,3.8619]
[1751606253956,1.45544,2577.6,2577.5,0.6541]
[1751606254356,1.45544,2577.6,2577.5,3.8619]
[1751606255567,1.93924,2577.5,2577.2,3.2078]
[1751606255769,37.85614,2577.5,2577.2,3.2078]
[1751606255964,0.77573,2577.3,2577.2,3.2078]
[1751606256263,0.77573,2577.3,2577.2,5.85758273]
[1751606258969,0.77573,2577.3,2577.2,2.64978273]
[1751606259171,0.77573,2577.3,2577.2,5.85758273]
[1751606259470,0.77573,2577.3,2577.2,2.64978273]
[1751606260172,0.77579,2577.1,2577.0,3.32328273]
[1751606263170,0.77579,2577.1,2577.0,4.09910273]
[1751606263375,0.77579,2577.1,2577.0,5.38460273]
[1751606263779,0.77579,2577.1,2577.0,4.60878273]
[1751606265880,0.77579,2577.1,2577.0,5.38460273]
[1751606266079,0.77579,2577.1,2577.0,4.60878273]
[1751606266981,0.77579,2577.1,2577.0,5.38460273]
[1751606268676,0.77578,2577.2,2577.1,0.77577]
[1751606268879,0.77578,2577.2,2577.1,4.75125273]
[1751606270581,36.00776,2577.3,2577.2,0.77576]
[1751606270782,36.00776,2577.3,2577.2,2.10146]
[1751606275987,36.00776,2577.3,2577.2,1.3257]
[1751606276189,0.77579,2577.1,2577.0,0.6735]
[1751606277281,0.77579,2577.1,2577.0,1.44932]
[1751606277488,0.77579,2577.1,2577.0,0.6735]
[1751606278487,0.77579,2577.1,2577.0,1.44932]
[1751606279290,0.77579,2577.1,2577.0,2.78112]
[1751606280783,0.77579,2577.1,2577.0,0.6735]
[1751606280983,0.77582,2577.0,2576.9,3.2078]
[1751606281183,1.45042,2577.0,2576.9,5.85758273]
[1751606281689,1.45042,2577.0,2576.9,6.56038273]
[1751606283094,0.77582,2577.0,2576.9,7.33623273]
[1751606283294,0.77582,2577.0,2576.9,6.56038273]
[1751606284693,0.77588,2576.8,2576.7,5.74838869]
[1751606284888,0.77588,2576.8,2576.7,6.43488869]
[1751606286286,0.77588,2576.8,2576.7,3.09860596]
[1751606286483,0.77591,2576.7,2576.6,3.2078]
[1751606287188,0.6604,2576.8,2576.5,3.09860596]
[1751606287189,0.77594,2576.6,2576.5,3.09860596]
[1751606287393,0.6897,2576.6,2576.3,6.30640596]
[1751606287692,0.776,2576.4,2576.3,6.30640596]
[1751606289495,0.77603,2576.3,2576.2,5.74838869]
[1751606290094,0.77603,2576.3,2576.2,3.09860596]
[1751606290294,0.77603,2576.3,2576.2,5.74838869]
[1751606291396,0.77606,2576.2,2576.1,3.78510596]
[1751606291593,1.43076,2576.2,2576.1,0.6865]
[1751606291796,3.30448273,2576.2,2575.8,3.09860596]
[1751606291986,0.6554,2576.1,2575.8,3.09860596]
[1751606292192,0.77622,2575.7,2575.6,9.65628869]
[1751606292496,0.77622,2575.7,2575.6,6.55768273]
[1751606292894,0.77622,2575.7,2575.6,7.87638273]
[1751606293396,0.77621,2575.8,2575.6,8.65262273]
[1751606293596,0.77622,2575.7,2575.6,7.87638273]
[1751606295701,0.77621,2575.8,2575.6,8.65263273]
[1751606295903,0.77619,2575.8,2575.6,8.65262273]
[1751606296101,0.77622,2575.7,2575.6,7.87638273]
[1751606297297,0.77622,2575.7,2575.6,6.55768273]
[1751606297500,0.77622,2575.7,2575.6,3.9079]
[1751606299109,3.30518273,2576.1,2575.6,6.55768273]
[1751606299310,0.6554,2576.1,2575.6,7.33391273]
[1751606299903,0.77622,2575.7,2575.6,7.33391273]
[1751606300302,0.77622,2575.7,2575.6,6.55768273]
[1751606300708,0.77619,2575.8,2575.7,0.77621]
[1751606300898,0.77619,2575.8,2575.7,2.11791]
[1751606302302,0.77617,2575.9,2575.8,0.77619]
[1751606302503,0.77619,2575.8,2575.7,2.1179]
[1751606302802,0.77617,2575.9,2575.7,4.76768273]
[1751606303104,0.77619,2575.8,2575.7,4.76768273]
[1751606304004,0.77619,2575.8,2575.7,3.99148273]
[1751606305806,0.6554,2576.1,2575.7,4.76769273]
[1751606306000,11.69515,2576.0,2575.9,2.64978273]
[1751606306605,12.35051,2576.1,2575.9,3.42592273]
[1751606306802,11.69511,2576.1,2576.0,0.77613]
[1751606307003,11.69511,2576.1,2576.0,2.85003]
[1751606307600,11.69511,2576.1,2576.0,2.0739]
[1751606307798,11.69511,2576.1,2576.0,2.85003]
[1751606307799,0.77611,2576.1,2576.0,2.85003]
[1751606307998,0.77611,2576.1,2576.0,2.0739]
[1751606313412,0.77611,2576.1,2576.0,2.85003]
[1751606313912,0.77615,2576.0,2575.7,2.64978273]
[1751606314114,0.77615,2576.0,2575.9,0.77614]
[1751606314514,0.77612,2576.1,2576.0,0.77612]
[1751606315412,0.77614,2576.0,2575.9,0.77613]
[1751606315613,0.77614,2576.0,2575.9,2.10533]
[1751606317313,0.77612,2576.1,2576.0,0.7761]
[1751606317612,0.77612,2576.1,2576.0,1.4189]
[1751606319915,0.6547,2576.2,2576.1,0.77609]
[1751606320109,1.43079,2576.2,2576.1,0.77609]
[1751606320311,0.77606,2576.2,2576.1,3.42587273]
[1751606320503,0.77606,2576.2,2576.1,4.76797273]
[1751606323214,46.153,2576.3,2576.2,0.77606]
[1751606323215,46.92905,2576.3,2576.2,0.77606]
[1751606324112,11.69405,2576.3,2576.2,0.77606]
[1751606324326,46.92705,2576.3,2576.2,0.77606]
[1751606324710,1.301,2576.4,2576.3,0.77603]
[1751606324915,4.04518273,2576.9,2576.3,2.64978273]
[1751606324916,0.77593,2576.7,2576.3,2.64978273]
[1751606325216,0.77593,2576.7,2576.6,0.77593]
[1751606325617,0.77595,2576.6,2576.5,0.77595]
[1751606328223,0.77593,2576.7,2576.6,0.77592]
[1751606328617,92.5528,2576.8,2576.7,0.77591]
[1751606329722,0.77591,2576.7,2576.6,3.42570273]
[1751606329919,91.7769,2576.8,2576.6,3.42571273]
[1751606330120,0.77591,2576.7,2576.6,3.42571273]
[1751606331123,0.77591,2576.7,2576.6,2.64978273]
[1751606333028,92.5498,2576.8,2576.7,0.77591]
[1751606333225,92.5498,2576.8,2576.7,2.13591]
[1751606333426,92.5498,2576.8,2576.7,2.83681]
[1751606334927,92.5498,2576.8,2576.7,1.47681]
[1751606337232,91.7739,2576.8,2576.7,1.47681]
[1751606339933,91.7689,2576.8,2576.7,1.47681]
[1751606340132,91.7689,2576.8,2576.7,2.86671]
[1751606341531,92.54478,2576.8,2576.7,2.86671]
[1751606345636,0.77591,2576.7,2576.6,0.77593]
[1751606345838,0.77597,2576.6,2576.5,0.77595]
[1751606346136,36.66967,2576.6,2576.5,0.77595]
[1751606347432,0.776,2576.5,2576.4,0.77599]
[1751606347640,1.4726,2576.5,2576.4,0.77599]
[1751606354040,0.6966,2576.5,2576.4,0.77599]
[1751606354235,0.77592,2576.7,2576.6,0.77594]
[1751606354441,95.0827,2576.8,2576.7,0.77591]
[1751606354640,95.784,2576.8,2576.7,0.77591]
[1751606355539,0.77591,2576.7,2576.6,3.42571273]
[1751606356041,92.5762,2576.8,2576.7,0.77591]
[1751606357042,91.8003,2576.8,2576.7,0.77591]
[1751606357242,91.8003,2576.8,2576.7,2.82611]
[1751606358446,92.57618,2576.8,2576.7,2.82611]
[1751606358843,56.5853,2576.8,2576.7,2.82611]
[1751606359039,0.77583,2577.0,2576.9,0.77583]
[1751606359239,35.98883,2577.0,2576.9,3.42561273]
[1751606360437,0.77583,2577.0,2576.9,0.77583]
[1751606362043,0.77588,2576.9,2576.7,7.79858869]
[1751606362240,0.77588,2576.8,2576.7,3.09860596]
[1751606362441,0.77588,2576.8,2576.7,0.77589]
[1751606363038,36.69157,2576.9,2576.8,0.77588]
[1751606365045,0.7759,2576.8,2576.7,0.77589]
[1751606367547,36.69157,2576.9,2576.8,0.77588]
[1751606369746,0.77591,2576.8,2576.7,0.77589]
[1751606372646,0.77594,2576.6,2576.5,7.75745596]
[1751606373041,0.77594,2576.6,2576.5,3.77370596]
[1751606373248,0.77597,2576.5,2576.4,0.776]
[1751606373442,0.77597,2576.5,2576.4,1.475]
[1751606377854,0.77597,2576.5,2576.4,0.699]
[1751606378348,0.705,2576.6,2576.3,3.42579273]
[1751606378349,0.776,2576.4,2576.3,3.42579273]
[1751606379054,0.776,2576.4,2576.3,0.77601]
[1751606379947,0.705,2576.6,2576.2,7.71620596]
[1751606380151,0.77603,2576.3,2576.2,8.49225596]
[1751606380347,0.77603,2576.4,2576.3,0.77603]
[1751606382653,0.77603,2576.3,2576.2,7.08245596]
[1751606382847,1.42645641,2576.3,2576.2,7.08245596]
[1751606383049,1.42645641,2576.3,2576.2,6.30640596]
[1751606383250,1.42645641,2576.3,2576.2,3.2078]
[1751606384754,1.42645641,2576.3,2576.2,3.98386]
[1751606384955,1.42645641,2576.3,2576.2,3.2078]
[1751606386956,0.77606,2576.2,2576.1,4.07445273]
[1751606387156,0.77606,2576.2,2576.1,7.28225273]
[1751606388056,0.79118641,2576.2,2576.1,7.28225273]
[1751606392862,0.79118641,2576.2,2576.1,4.07445273]
[1751606393161,0.79118641,2576.2,2576.1,7.28225273]
[1751606394962,0.79118641,2576.2,2576.1,3.8564]
[1751606395663,0.79118641,2576.2,2576.1,4.63249]
[1751606396263,0.79118641,2576.2,2576.1,3.8564]
[1751606396762,0.79118641,2576.2,2576.1,3.2078]
[1751606397964,0.79118641,2576.2,2576.1,3.98389]
[1751606398661,0.79118641,2576.2,2576.1,4.63279]
[1751606398857,0.79118641,2576.2,2576.1,1.42499]
[1751606399858,0.79118641,2576.2,2576.1,0.6489]
[1751606400260,0.79118641,2576.2,2576.1,1.42499]
[1751606400559,0.79118641,2576.2,2576.1,0.6489]
[1751606400760,0.77609,2576.1,2576.0,3.2078]
[1751606400959,0.79121641,2576.1,2576.0,3.2078]
[1751606401359,0.79121641,2576.1,2576.0,3.98393]
[1751606401757,0.79121641,2576.1,2576.0,3.2078]
[1751606402558,0.79121641,2576.1,2576.0,3.98393]
[1751606402753,0.79121641,2576.1,2576.0,3.2078]
[1751606404365,0.79121641,2576.1,2576.0,3.98393]
[1751606405064,0.79121641,2576.1,2576.0,5.31183]
[1751606405262,0.01512641,2576.1,2576.0,5.31183]
[1751606406767,0.01512641,2576.1,2576.0,8.41043596]
[1751606408257,0.01512641,2576.1,2576.0,5.31183]
[1751606410066,0.79121641,2576.1,2576.0,8.41043596]
[1751606410272,0.79121641,2576.1,2576.0,5.31182]
[1751606410463,0.79121641,2576.1,2576.0,4.5357]
[1751606411565,0.79121641,2576.1,2576.0,5.31183]
[1751606411966,0.79121641,2576.1,2576.0,4.5357]
[1751606413165,0.79121641,2576.1,2576.0,5.31182]
[1751606417074,0.79121641,2576.1,2576.0,2.10402]
[1751606419076,0.79121641,2576.1,2576.0,1.3279]
[1751606419379,0.77612,2576.0,2575.9,3.09860596]
[1751606419568,0.77616,2575.9,2575.8,7.77967596]
[1751606420074,0.79128641,2575.9,2575.8,7.77967596]
[1751606420271,0.79128641,2575.9,2575.8,7.00350596]
[1751606420969,0.79128641,2575.9,2575.8,6.30640596]
[1751606421176,0.79128641,2575.9,2575.8,3.2078]
[1751606421571,0.77625,2575.6,2575.5,6.96840596]
[1751606421882,0.77625,2575.6,2575.5,3.09860596]
[1751606422071,0.77628,2575.5,2575.4,3.09860596]
[1751606422270,1.41688,2575.5,2575.4,3.09860596]
[1751606422473,2.07798,2575.5,2575.4,3.09860596]
[1751606422866,0.77631,2575.4,2575.3,3.09860596]
[1751606423069,0.79143641,2575.4,2575.3,3.09860596]
[1751606423371,0.79143641,2575.4,2575.2,3.87496596]
[1751606423776,0.79143641,2575.4,2575.3,0.77634]
[1751606424873,0.77634,2575.3,2575.2,0.77635]
[1751606425071,0.01512641,2575.3,2575.2,0.77635]
[1751606426280,0.79146641,2575.3,2575.2,0.77635]
[1751606427274,0.77637,2575.2,2575.1,8.02115273]
[1751606427477,0.79147641,2575.3,2575.1,8.02115273]
[1751606427777,0.77637,2575.2,2575.1,6.63395273]
[1751606428075,0.01512641,2575.3,2575.0,0.6605]
[1751606428076,0.7764,2575.1,2575.0,0.6605]
[1751606428376,0.7764,2575.1,2574.7,0.77649]
[1751606428377,0.77646,2574.9,2574.7,0.77649]
[1751606428577,0.77649,2574.8,2574.7,0.77649]
[1751606429178,0.01512641,2574.8,2574.7,0.77649]
[1751606430576,0.01512641,2574.8,2574.7,2.05549]
[1751606430977,0.01512641,2574.8,2574.5,3.2078]
[1751606431179,0.01512641,2574.8,2573.0,3.88507]
[1751606431180,4.59122273,2574.6,2573.9,3.98454]
[1751606431476,0.77682,2573.7,2573.6,3.2078]
[1751606431673,10.909,2573.7,2573.6,3.2078]
[1751606431873,1.3377,2573.9,2573.6,5.85758273]
[1751606432074,10.909,2573.8,2573.7,1.279]
[1751606432271,10.92412641,2573.8,2573.7,1.279]
[1751606432778,11.70091641,2573.8,2573.7,1.279]
[1751606433383,0.79191641,2573.8,2573.7,1.279]
[1751606436280,0.77682,2573.7,2573.6,6.50288273]
[1751606436479,0.77682,2573.7,2573.6,3.8531]
[1751606437285,0.79194641,2573.7,2573.6,3.2078]
[1751606439685,10.92912641,2573.7,2573.6,3.98465]
[1751606439885,10.92912641,2573.7,2573.6,2.80065]
[1751606440787,0.01512641,2573.7,2573.6,2.80065]
[1751606440986,0.01512641,2573.7,2573.6,6.00845]
[1751606447788,10.915,2574.0,2573.9,0.77676]
[1751606447991,10.915,2574.0,2573.9,3.42654273]
[1751606448992,0.6404,2574.4,2573.9,7.79947273]
[1751606449191,0.77665,2574.3,2574.2,0.77664]
[1751606449387,0.6404,2574.4,2574.2,1.3782]
[1751606449592,0.77664,2574.3,2574.2,2.0584]
[1751606449794,0.77664,2574.3,2574.2,2.83506]
[1751606450491,1.41702,2574.4,2574.3,0.77664]
[1751606451393,1.41702,2574.4,2574.3,2.15484]
[1751606451591,0.77656,2574.6,2574.3,4.02798273]
[1751606451902,36.08157,2574.6,2574.5,0.77658]
[1751606452099,0.77657,2574.6,2574.5,0.77658]
[1751606452995,0.7766,2574.5,2574.4,0.77659]
[1751606454099,0.7766,2574.5,2574.4,2.17139]
[1751606454290,0.7766,2574.5,2574.4,1.3948]
[1751606454490,0.77657,2574.6,2574.4,1.3948]
[1751606454698,0.77658,2574.5,2574.4,1.3948]
[1751606454895,0.77661,2574.4,2574.3,2.64978273]
[1751606455095,0.7766,2574.5,2574.3,0.77661]
[1751606455392,0.7766,2574.5,2574.4,0.77661]
[1751606456592,0.77657,2574.6,2574.5,0.77657]
[1751606457298,0.77657,2574.6,2574.5,0.77656]
[1751606464908,0.7766,2574.5,2574.4,0.77659]
[1751606465899,0.77661,2574.4,2574.3,2.15842]
[1751606466703,0.7766,2574.5,2574.4,0.77659]
[1751606468013,0.77661,2574.4,2574.3,4.80819273]
[1751606468413,0.77659,2574.5,2574.4,0.7766]
[1751606471511,35.294,2574.7,2574.3,4.03158273]
[1751606471713,0.77657,2574.6,2574.5,0.77656]
[1751606476717,0.77658,2574.5,2574.4,2.08628]
[1751606477015,0.7766,2574.5,2574.4,0.77659]
[1751606479519,0.77657,2574.6,2574.5,0.77655]
[1751606480223,0.77655,2574.6,2574.5,0.77655]
[1751606489828,36.07054,2574.7,2574.6,0.77655]
[1751606490030,37.04591841,2574.7,2574.6,0.77655]
[1751606490332,36.07054,2574.7,2574.6,0.77655]
[1751606490527,0.6803,2574.8,2574.7,0.77652]
[1751606490733,36.88772464,2574.8,2574.7,0.77652]
[1751606490926,36.88772464,2574.8,2574.7,2.73262]
[1751606491333,35.9123,2574.8,2574.7,2.73262]
[1751606492529,0.77646,2574.9,2574.8,0.77649]
[1751606492735,3.2078,2575.1,2575.0,0.77643]
[1751606492736,14.8012,2575.1,2575.0,0.77643]
[1751606493043,0.77631,2575.4,2575.3,0.77634]
[1751606493232,35.231,2575.4,2575.3,0.77634]
[1751606493735,46.8521,2575.6,2575.5,0.77628]
[1751606494237,11.6201,2575.6,2575.5,0.77628]
[1751606494538,10.916,2575.6,2575.5,1.45758]
[1751606496534,10.916,2575.6,2575.5,2.82008]
[1751606497232,1.4536,2575.8,2575.7,0.77622]
[1751606497436,36.6806,2575.8,2575.7,0.77622]
[1751606499025,0.6774,2575.8,2575.7,0.77622]
[1751606499226,10.914,2576.3,2575.6,2.64978273]
[1751606499432,39.84422,2576.1,2576.0,0.77613]
[1751606499629,4.62022,2576.1,2575.9,0.77613]
[1751606499834,10.914,2576.3,2576.2,0.77607]
[1751606500035,46.14,2576.3,2576.2,3.42585273]
[1751606500332,3.2078,2576.4,2576.2,3.42585273]
[1751606500539,0.77603,2576.3,2576.2,3.42585273]
[1751606500733,3.2078,2576.4,2576.2,3.42585273]
[1751606500927,0.77607,2576.2,2576.1,0.77608]
[1751606501140,0.77605,2576.3,2576.2,0.77605]
[1751606501336,0.77607,2576.2,2576.1,0.77608]
[1751606501636,3.2078,2576.4,2576.0,4.76928273]
[1751606502237,0.7761,2576.2,2576.1,0.7761]
[1751606503332,0.7761,2576.1,2576.0,4.76929273]
[1751606505437,0.7761,2576.1,2575.9,2.11144]
[1751606505840,0.77613,2576.0,2575.9,0.6391]
[1751606506234,0.77613,2576.0,2575.8,3.2078]
[1751606506441,1.42876,2575.9,2575.8,3.2078]
[1751606506628,1.3479,2575.9,2575.5,3.8713]
[1751606506833,0.77625,2575.6,2575.5,3.2078]
[1751606507135,3.42603273,2575.6,2575.5,3.2078]
[1751606508735,0.77625,2575.6,2575.5,3.2078]